Cogmind - Beta 15 @@@ ROGUE MODE // 2025.10.17 @ 18:08:09 Player: Conlarando Result: Destroyed by D-53 Grenadier with Mini Grenade Launcher Performance ------------- Evolutions (0) 0 Regions Visited (2) 400 Robots Destroyed (25) 125 Value Destroyed (615) 615 Prototype IDs (6) 120 Alien Tech Used (0) 0 Bonus (0) 0 TOTAL SCORE: 1260 Bonus ------- None Cogmind --------- Core Integrity 0/250 Matter 274/300 Energy 100/100 System Corruption 0% Temperature Cool (1) Movement Core (450) Ox8 Location -10/Mines Parts ------- > --- POWER (1) -------- (None) > --- PROPULSION (2) --- (None) > --- UTILITY (2) ------ Large Storage Unit Experimental Sensor Array > --- WEAPON (2) ------- Light Assault Rifle Rocket Launcher > --- INVENTORY (15) --- Ion Engine Small Storage Unit Visual Processing Unit Sensor Array Signal Interpreter Signal Interpreter Signal Interpreter Signal Interpreter Assault Rifle Light Assault Rifle Light Assault Rifle Peak State ------------ > --- POWER ------------ Ion Engine > --- PROPULSION ------- Light Treads Light Treads > --- UTILITY ---------- Large Storage Unit Experimental Sensor Array > --- WEAPON ----------- Light Assault Rifle Rocket Launcher > --- INVENTORY -------- Ion Engine Ion Engine Small Storage Unit Visual Processing Unit Sensor Array Signal Interpreter Signal Interpreter Signal Interpreter Signal Interpreter Assault Rifle Light Assault Rifle Light Assault Rifle [Rating: 17] Favorites ----------- Power Ion Engine Engine Ion Engine Propulsion Light Treads Treads Light Treads Utility Large Storage Unit Device Experimental Sensor Array Storage Large Storage Unit Processor Signal Interpreter Weapon Light Assault Rifle Ballistic Gun Light Assault Rifle Launcher Rocket Launcher Build | -11 -10 -10 ------- Run | Yrd Mat Min Slots Evolved . | . . . Power . | . . . Propulsion . | . . . Utility . | . . . Weapon . | . . . Parts Attached 15 | 6 6 3 Power 3 | 1 1 1 Engine 3 | 1 1 1 Core . | . . . Reactor . | . . . Propulsion 4 | 2 2 . Treads 4 | 2 2 . Leg . | . . . Wheel . | . . . Hover . | . . . Flight . | . . . Utility 4 | 1 2 1 Device 1 | . . 1 Storage 2 | 1 1 . Processor 1 | . 1 . Hackware . | . . . Protection . | . . . Artifact . | . . . Weapon 4 | 2 1 1 Energy Gun . | . . . Energy Cannon . | . . . Ballistic Gun 3 | 2 1 . Ballistic Cannon . | . . . Launcher 1 | . . 1 Special Weapon . | . . . Impact Weapon . | . . . Slashing Weapon . | . . . Piercing Weapon . | . . . Special Melee Weapon . | . . . Unidentified Prototypes 1 | . . 1 Parts Lost 8 | . 4 4 Power 3 | . 1 2 Propulsion 4 | . 2 2 Utility . | . . . Weapon 1 | . 1 . Highest Loss Streak 4 | . 1 4 To Critical Strikes . | . . . Average Backups 10 | 2 10 11 Power 2 | . 2 1 Propulsion 1 | . 1 . Utility 5 | . 5 7 Weapon 1 | . 1 2 Tool/Special . | . . . Unused Backups 10 | . 1 9 Power 1 | . . 1 Propulsion 1 | . 1 . Utility 6 | . . 6 Weapon 2 | . . 2 Tool/Special . | . . . Average Slot Usage (%) 97 | . 97 98 Engine 13 | . 13 13 Treads 27 | . 27 27 Storage 14 | . 14 14 Processor 11 | . 12 2 Ballistic Gun 27 | . 28 16 Peak Build Rating 17 | 6 8 17 Average Rating 8 | 3 7 15 On Entrance 4 | . 6 8 Naked Turns . | . . . Heaviest Build 31 | 13 28 31 Greatest Support 40 | 40 40 40 Greatest Overweight (x) 1 | . 1 1 Average Overweight (x) . | . . . Largest Inventory Capacity 15 | 8 15 15 Average Capacity 13 | 6 14 15 Most Carried 13 | 5 13 12 Average Carried 10 | 2 10 11 Final Capacity 15 | 8 15 15 Final Carried 11 | 3 11 11 Class Distribution -------------------- 100% | Mutant Dominant Class ---------------- Mutant | -10/Materials Mutant | -10/Mines Resources | -11 -10 -10 ----------- Run | Yrd Mat Min Matter Collected 588 | 188 380 20 Remotely . | . . . Salvage Created 848 | . 848 . Parts 41 | . 41 . Haulers Intercepted 2 | . 2 . Recyclers Shooed 2 | . 2 . Parts Field Recycled . | . . . Retrieved Matter . | . . . Parts Self-Destructed . | . . . Prevented . | . . . Kills | -11 -10 -10 ------- Run | Yrd Mat Min Combat Hostiles Destroyed 17 | . 17 . Guns 17 | . 17 . Classes Destroyed 6 | . 6 . Worker 2 | . 2 . Hauler 2 | . 2 . Operator 1 | . 1 . Watcher 3 | . 3 . Swarmer 3 | . 3 . Grunt 14 | . 14 . Best Kill Streak 5 | . 5 . Combat Bots Only 4 | . 4 . Max Kills in Single Turn 2 | . 2 . Gunslinging . | . . . Exploded . | . . . Melee . | . . . Uniques/NPCs Destroyed . | . . . Combat | -11 -10 -10 -------- Run | Yrd Mat Min Hostile Shots Fired 119 | . 107 12 Missed 30 | . 30 . Hits 89 | . 77 12 Projectile 89 | . 77 12 AOE 12 | . . 12 Damage Taken 1312 | . 872 440 Core 256 | . 171 85 Absorbed by Shields . | . . . Regen/Repaired (Parts) 39 | . 39 . Core Remaining (%) 100 | 100 . . Volleys Fired 94 | . 91 3 Largest 2 | . 2 2 Hottest 53 | . 40 53 Shots Fired 188 | . 182 6 Gun 185 | . 182 3 Cannon . | . . . Launcher 3 | . . 3 Special . | . . . Kinetic 185 | . 182 3 Thermal . | . . . Explosive 3 | . . 3 Electromagnetic . | . . . Robot Hit Streak 13 | . 13 13 Robot Miss Streak 5 | . 5 1 Penetration Max . | . . . Secondary Targets 1 | . 1 . Max Gunslinging Chain 1 | . 1 . Shots Hit Robots 127 | . 122 5 Core Hits 60 | . 55 5 Critical Kills 2 | . 2 . Critical Parts Destroyed 1 | . 1 . Critical Strikes 3 | . 3 . Destroy 3 | . 3 . Melee Attacks . | . . . Impact . | . . . Slashing . | . . . Piercing . | . . . Sneak Attacks . | . . . Combat Hostiles . | . . . Follow-up Attacks . | . . . Damage Inflicted 1168 | . 1086 82 Guns 1110 | . 1086 24 Cannons . | . . . Explosions 58 | . . 58 Melee . | . . . Ramming . | . . . Kinetic 1110 | . 1086 24 Thermal . | . . . Explosive 58 | . . 58 Electromagnetic . | . . . Impact . | . . . Slashing . | . . . Piercing . | . . . Highest Corruption . | . . . Average Corruption . | . . . Corruption Purged . | . . . Corruption Blocked . | . . . Overload Shots . | . . . Overflow Damage . | . . . Projectiles . | . . . Explosions . | . . . Melee . | . . . Knockbacks . | . . . Impact . | . . . Kinetic . | . . . Secondary . | . . . Self-Inflicted Damage . | . . . Shots . | . . . Rammed . | . . . Targets Rammed . | . . . Kicked . | . . . Crushed . | . . . Highest Temperature 36 | . 36 2 Average Temperature 9 | . 10 1 Received Heat Transfer 414 | . 414 . Siege Activations . | . . . Martial Activations . | . . . Shielding Activations . | . . . Robots Disrupted . | . . . Combat Hostiles . | . . . Robots Corrupted . | . . . Combat Hostiles . | . . . Parts Fried . | . . . Impact Corruptions . | . . . Robots Melted . | . . . Combat Hostiles . | . . . Parts Melted 1 | . 1 . Heat Transferred . | . . . Parts Sabotaged . | . . . Parts Stolen . | . . . Parts Stripped . | . . . Power Chain Reactions . | . . . Alert | -11 -10 -10 ------- Run | Yrd Mat Min Maximum Alert Level . | . . . Low Security (%) 100 | 100 100 100 Level 1 . | . . . Level 2 . | . . . Level 3 . | . . . Level 4 . | . . . Level 5 . | . . . High Security . | . . . Max Security . | . . . Peak Influence 146 | . 146 22 Initial 22 | . . 22 Average 46 | . 51 3 Influence Increases 595 | . 584 11 Destroy 0b10 Robot/C 340 | . 340 . Destroy 0b10 Robot/NC 40 | . 40 . Destroy Leader 90 | . 90 . Successful Hack 68 | . 68 . Destroy Structure 12 | . 1 11 Lose Combat Pursuer 45 | . 45 . Influence Decreases 595 | . 526 69 Entered New Map 36 | . . 36 Time Decay 509 | . 486 23 Lost Part 50 | . 40 10 Squads Dispatched 4 | . 4 . Investigation 2 | . 2 . Extermination . | . . . Reinforcement 2 | . 2 . Assault . | . . . Garrison . | . . . Intercept . | . . . Searches Triggered . | . . . Construction Impeded . | . . . Haulers Reinforced . | . . . Active Scanning Responses . | . . . Cargo Convoy Interrupts . | . . . Stealth | -11 -10 -10 --------- Run | Yrd Mat Min Distress Signals 3 | . 3 . Communications Jammed . | . . . Distress Signals . | . . . Times Spotted 41 | . 35 6 Peak Tracking Total 6 | . 5 6 Tactical Retreats 2 | . 2 . Traps | -11 -10 -10 ------- Run | Yrd Mat Min Traps Triggered 2 | . 2 . Indirectly . | . . . Trap Hack Attempts . | . . . Triggered . | . . . Disarmed . | . . . Reprogrammed . | . . . Reused . | . . . Traps Extracted . | . . . Installed . | . . . Triggered . | . . . Machines | -11 -10 -10 ---------- Run | Yrd Mat Min Machines Disabled . | . . . Max in Single Turn . | . . . Machines Repaired . | . . . Machines Dismantled . | . . . Machines Sabotaged . | . . . Overloaded Fab Kills . | . . . Hacking | -11 -10 -10 --------- Run | Yrd Mat Min Machines Accessed 10 | . 10 . Terminals 7 | . 7 . Fabricators . | . . . Repair Stations 1 | . 1 . Recycling Units 2 | . 2 . Scanalyzers . | . . . Garrison Access . | . . . Total Hacks 24 | . 24 . Successful 13 | . 13 . Failed 11 | . 11 . Catastrophic . | . . . Database Lockouts . | . . . Manual . | . . . Terminals 19 | . 19 . Fabricators . | . . . Repair Stations 3 | . 3 . Recycling Units 2 | . 2 . Scanalyzers . | . . . Garrison Access . | . . . Terminal Hacks 9 | . 9 . Prototype ID Bank 3 | . 3 . Branch Access Points 1 | . 1 . Emergency Access Points 1 | . 1 . Locate Traps 2 | . 2 . Hauler Manifests 1 | . 1 . Zone Layout 1 | . 1 . Fabricator Hacks . | . . . Repair Station Hacks 2 | . 2 . Scan Component 1 | . 1 . Repair 1 | . 1 . Recycling Unit Hacks 2 | . 2 . Report Inventory 2 | . 2 . Scanalyzer . | . . . Garrison Access Hacks . | . . . Unauthorized Hacks . | . . . Terminals . | . . . Fabricators . | . . . Repair Stations . | . . . Recycling Units . | . . . Scanalyzers . | . . . Garrison Access . | . . . Data Cores Recovered . | . . . Used . | . . . Hacking Detections 7 | . 7 . Full Trace Events . | . . . Feedback Events . | . . . Feedback Blocked . | . . . Robot Schematics Acquired . | . . . Robots Built . | . . . Authchips . | . . . Time . | . . . Total Robot Build Rating . | . . . Part Schematics Acquired . | . . . Parts Built . | . . . Authchips . | . . . Time . | . . . Total Part Build Rating . | . . . Parts Repaired 1 | . 1 . Time 26 | . 26 . Parts Recycled . | . . . Recycled Matter . | . . . Retrieved Matter . | . . . Retrieved Components . | . . . Parts Scanalyzed . | . . . Part Schematics Acquired . | . . . Parts Damaged . | . . . Bothacking | -11 -10 -10 ------------ Run | Yrd Mat Min Used RIF Installer . | . . . Robots Hacked . | . . . Non-combat . | . . . Combat . | . . . Robot Hacks Applied . | . . . Relay Couplers Released . | . . . Fabnet Peak Effective % . | . . . Robots Rewired . | . . . Allies Hacked . | . . . Hacks Repelled . | . . . Allies | -11 -10 -10 -------- Run | Yrd Mat Min Total Allies . | . . . Largest Group . | . . . Highest-Rated Group . | . . . Highest-Rated Ally . | . . . Total Orders . | . . . Ally Attacks . | . . . Total Damage . | . . . Kills . | . . . Allies Corrupted . | . . . Allies Melted . | . . . Intel | -11 -10 -10 ------- Run | Yrd Mat Min Active Infowar (turns) 155 | . . 155 Sensors 155 | . . 155 Robot Analysis Total . | . . . Derelict Logs Recovered 1 | . . 1 Drone Launches . | . . . Drone Recoveries . | . . . Exploration | -11 -10 -10 ------------- Run | Yrd Mat Min Turns Passed 2400 | 67 2153 180 Spaces Moved 1224 | 37 1083 104 Core 4 | 4 . . Treads 1220 | 33 1083 104 Legs . | . . . Wheels . | . . . Hover . | . . . Flight . | . . . Fastest Speed 50 | 50 160 160 Average Speed 160 | 148 160 160 Slowest Speed 240 | 160 240 240 Overloaded Moves . | . . . Propulsion Burnouts . | . . . Robots Hopped . | . . . Potential Cave-ins . | . . . Cave-ins Triggered . | . . . Exploration Rate (%) 39 | 5 87 25 Regions Visited 2 Branch Regions 1 Pre-discovered Areas 1 | . . 1 Known Exits Taken 1 | . 1 . Unknown Exits Taken 1 | 1 . . Scrap Searched 1 | . . 1 Spaces Dug . | . . . Terrain Destroyed 16 | . . 16 Melee . | . . . Projectile . | . . . AOE 16 | . . 16 Terrain Rammed . | . . . Walls Destroyed . | . . . Machines Disabled . | . . . Actions | -11 -10 -10 --------- Run | Yrd Mat Min Total 1505 | 47 1346 112 Wait 151 | . 151 . Move 1222 | 36 1082 104 Hop . | . . . Pick Up 20 | 5 14 1 Fast Attach 6 | 4 1 1 Attach 7 | 2 4 1 Detach . | . . . Swap 2 | . 1 1 Drop 3 | . 2 1 Fire 94 | . 91 3 Melee . | . . . Ram . | . . . Kick . | . . . Crush . | . . . Escape Stasis . | . . . Rewire . | . . . Trap . | . . . Miscellaneous . | . . . Route ------- -11/Scrapyard -10/Materials (discovered 5 exits: *Mat x3 / *Min x2) -10/Mines (discovered 1 exit: *Mat) History --------- Turn | Location | Event 9 | -11/Scrapyard | Discovered new exit (range 14) 68 | -11/Scrapyard | Entered Materials 111 | -10/Materials | Identified exit to Mines 316 | -10/Materials | Build established: Mutant 486 | -10/Materials | Repaired Lgt. Treads 627 | -10/Materials | Discovered new exit (range 10) 640 | -10/Materials | Identified exit to Materials 874 | -10/Materials | Discovered exit to Materials (range 13) 1480 | -10/Materials | Discovered exit to Materials (range 15) 2116 | -10/Materials | Core integrity fell below 50% 2221 | -10/Materials | Entered Mines 2242 | -10/Mines | Found a damaged Exp. Sensor Array with a note attached 2245 | -10/Mines | Received a Rocket Launcher from a helpful Derelict 2246 | -10/Mines | Found Prototype Device 2246 | -10/Mines | Identified Exp. Sensor Array 2348 | -10/Mines | Discovered exit to Materials (range 10) 2371 | -10/Mines | Assembled infested the area 2376 | -10/Mines | Assisted by a Guerilla fighting off Assembled 2398 | -10/Mines | Core integrity fell below 20% 2401 | -10/Mines | Destroyed by D-53 Grenadier with Mini Grenade Launcher Last Messages --------------- come on!" 02378_ Searching scrap... 02378_ Found Med. Matter Pod. 02378_ Found 51 Matter. 02379_ Acquired 20 matter. 02385_ BV-4AX(h): "I'll hold them off! Go on ahead or try to find another way!" 02387_ HV Slug penetrates Wall. 02389_ C-30 ARC bursts open, deploying its payload. 02389_ D-53 Grenadier unfolds itself. 02391_ Ion Engine destroyed. 02391_ T-07 Excavator destroyed. 02393_ BV-4AX(h) destroyed. 02395_ Ion Engine destroyed. 02395_ Lgt. Treads destroyed. 02397_ The unstable cave ceiling collapses. 02397_ as-87908 destroyed. 02399_ The unstable cave ceiling collapses. 02401_ Lgt. Treads destroyed. Map ----- +----------------------------------------------------+ | ?????????????????????????????????????????????????? | | ?????????????????????????????????????????????????? | | ?????????????????????????????????????????????????? | | ?????????????????????????????????????????????????? | | ?????????????????????????????????????????????????? | | ?????????????????????????????????????????????????? | | ?????????????????????????????????????????????????? | | ?????????????????????????????????????????????????? | | ?????????????????????????????????????????????????? | | ?????????????????????????????????????????????????? | | ?????????????????????????????????????????????????? | | ?????????????????????????????????????????????????? | | ??????????????????????????????? ?????????????????? | | ???????????????????????????????%?????????????????? | | ?????????????????????????????? ??????????????????? | | ?????????????????????????????# ??????????????????? | | ????????????????????????????# ???????????????????? | | ???????????????????????????? ???????????????????? | | ????????????????????????####a????????????????????? | | ????????????????????????#!!%=????????????????????? | | ??????????????????????###*a=#????????????????????? | | ?????????????????????## # % ##???????????????????? | | ????????????????????## a ##??????????????????? | | ????????????????????# #??????????????????? | | ????????????????????# #??????????????????? | | ????????????????????# @ #??????????????????? | | ????????????????????# #??????????????????? | | ????????????????????# #??????????????????? | | ????????????????????# #??????????????????? | | ????????????????????# #??????????????????? | | ????????????????????## d #??????????????????? | | ????????????????????? d #??????????????????? | | ????????????????????### % ##??????????????????? | | ???????????????????## ???????????????????? | | ???????????????????# ##??????????????????? | | ???????????????????# ##???????????????????? | | ?##???????????????## ##????????????????????? | | ?# ###""###????## ######?????????????????????? | | ?# X #???# ##??????????????????????????? | | ??# ???# #???????????????????????????? | | ??# #### ##??????????????????????????? | | ?# ##?????????????????????????? | | # < #????####?????????????????? | | ## ## ##??## ##????????????????? | | ## ???# ## #### #????????????????? | | ????## #?????# ### ####?????????????? | | ?????#????????# #?## ??????????????? | | ??????????????# #??# ### #????????????????? | | ??????????????# #?## ### #?????????????????# | | ??????????????# ### ##??????????####### | +----------------------------------------------------+ Best States ------------- Heat Dissipation 25 Energy Generation 10 Energy Capacity 250 Matter Stores 300 Matter Capacity 300 Sight Range 16 Robot Scan Range 20 Terrain Scan Density 10 Evasion (%) 40 Recoil Reduction 2 Item Schematics ----------------- None Robot Schematics ------------------ None Fabricated ------------ Nothing Repaired ---------- Lgt. Treads | 72% | -10/Materials Alien Tech Used ----------------- None Achievements -------------- None Challenges ------------ None Game ------ Seed SupersonicPhasingTerminator Manual? 0 Play Time 00:21:42 Cumulative 32.2 hours Start 2025.10.17 @ 17:46:17 End 2025.10.17 @ 18:08:09 Sessions 1 Manual Loads 0 Difficulty Rogue Special Mode None Game No. 44 Rogue 44 Adventurer 0 Explorer 0 Win Type - Total 1 Types 1/0/0/0/0/0/0/0/0/0 Lore% 5 Gallery% 27 Achievement% 27 Wizard Run 0 Options --------- Layout 1 ASCII 0 Keyboard 0 Movement Mouse Keybinds 0 Fullscreen 1 Font 24/Terminus Map View 50x35 Zoom Use 0% Tactical HUD 1 Map Filters NONE Filters NONE Steam 1 RUN: 5ac2546d-321a-424c-9d6f-21ceb639b73b